bitfinex/quotes_BTCUSD_20241223
["timestamp","ask_amount","ask_price","bid_price","bid_amount"]
[1734915402995,0.211774,94441.0,94432.0,0.02136701]
[1734915403233,0.211789,94434.0,94428.0,0.0427127]
[1734915403441,0.211776,94439.0,94418.0,0.211824]
[1734915403652,0.211776,94439.0,94433.0,8.55e-05]
[1734915403833,0.0797,94451.0,94435.0,0.211784]
[1734915404281,0.0797,94451.0,94433.0,8.55e-05]
[1734915404508,0.0797,94451.0,94440.0,0.211772]
[1734915404723,0.0797,94451.0,94436.0,0.211783]
[1734915405147,0.00033314,94453.0,94437.0,0.211781]
[1734915405360,0.00033314,94453.0,94433.0,8.55e-05]
[1734915405561,0.00033314,94453.0,94439.0,0.211776]
[1734915405765,0.12929735,94450.0,94433.0,0.04249683]
[1734915405975,0.34106435,94444.0,94433.0,0.04249683]
[1734915406187,0.211783,94436.0,94433.0,8.55e-05]
[1734915409727,0.211783,94436.0,94418.0,0.211822]
[1734915409933,0.081,94437.0,94413.0,0.211834]
[1734915410116,0.211803,94428.0,94417.0,0.02125302]
[1734915411827,0.211814,94423.0,94413.0,0.04411656]
[1734915412187,0.211814,94423.0,94407.0,0.15]
[1734915412482,0.423627,94423.0,94407.0,0.15]
[1734915412729,0.211813,94423.0,94413.0,0.02114034]
[1734915413113,0.211813,94423.0,94413.0,0.02168205]
[1734915413318,0.21179,94434.0,94414.0,0.211832]
[1734915413634,0.446585,94432.0,94414.0,0.211832]
[1734915413834,0.211805,94427.0,94414.0,0.211832]
[1734915414380,0.211805,94427.0,94413.0,0.02168205]
[1734915414744,0.211819,94420.0,94413.0,0.02168205]
[1734915414946,0.211806,94426.0,94413.0,0.02168205]
[1734915416249,0.211823,94419.0,94413.0,0.02168205]
[1734915416472,0.211823,94419.0,94413.0,0.02176755]
[1734915416883,0.21181,94425.0,94413.0,0.02176755]
[1734915417088,0.211794,94431.0,94414.0,0.42419354]
[1734915417290,0.211794,94431.0,94414.0,0.423664]
[1734915417626,0.211794,94431.0,94414.0,0.211832]
[1734915418022,0.211788,94434.0,94415.0,0.21183]
[1734915419850,0.12929735,94430.0,94413.0,0.02176755]
[1734915420051,0.081,94437.0,94413.0,0.02176755]
[1734915420052,0.211825,94418.0,94413.0,0.02176755]
[1734915420252,0.211815,94422.0,94413.0,0.02176755]
[1734915420814,0.211828,94416.0,94413.0,0.00062721]
[1734915421025,0.023,94414.0,94413.0,0.00062721]
[1734915421220,0.1243084,94414.0,94413.0,0.00062721]
[1734915422278,0.3361404,94414.0,94413.0,0.00062721]
[1734915429750,0.1243084,94414.0,94388.0,8.56e-05]
[1734915429957,0.000171,94418.0,94396.0,0.00016245]
[1734915430419,0.000171,94418.0,94400.0,0.12929735]
[1734915430637,0.000171,94418.0,94414.0,0.21183]
[1734915431076,0.000171,94418.0,94414.0,0.423661]
[1734915431281,0.000171,94418.0,94413.0,0.0209991]
[1734915431737,0.000171,94418.0,94413.0,0.2328321]
[1734915434557,0.000171,94418.0,94413.0,0.1048321]
[1734915434766,0.000171,94418.0,94409.0,0.15]
[1734915434968,0.000171,94418.0,94412.0,0.211837]
[1734915435588,0.000171,94418.0,94410.0,0.1013084]
[1734915436332,0.000171,94418.0,94412.0,0.02149756]
[1734915437211,0.000171,94418.0,94413.0,0.211835]
[1734915438302,0.000171,94418.0,94412.0,0.02149756]
[1734915439119,0.010171,94418.0,94412.0,0.02149756]
[1734915440288,0.221995,94418.0,94412.0,0.02149756]
[1734915440506,0.221995,94418.0,94407.0,0.04349756]
[1734915440708,0.221995,94418.0,94404.0,0.211854]
[1734915441762,0.221995,94418.0,94413.0,8.55e-05]
[1734915442375,0.010171,94418.0,94413.0,8.55e-05]
[1734915443310,0.010171,94418.0,94414.0,0.423663]
[1734915443766,0.010171,94418.0,94414.0,0.211831]
[1734915444815,0.010171,94418.0,94413.0,8.55e-05]
[1734915445812,0.010171,94418.0,94414.0,0.211831]
[1734915448200,0.010171,94418.0,94414.0,0.25382155]
[1734915448528,0.010171,94418.0,94414.0,0.04199055]
[1734915448785,0.010171,94418.0,94413.0,8.55e-05]
[1734915449742,0.010171,94418.0,94408.0,0.04332179]
[1734915449946,0.010171,94418.0,94407.0,0.211847]
[1734915450148,0.010171,94418.0,94412.0,0.02142751]
[1734915450350,0.010171,94418.0,94412.0,0.23326351]
[1734915450965,0.010171,94418.0,94412.0,0.02142751]
[1734915451159,0.010171,94418.0,94415.0,0.21183]
[1734915451363,0.010171,94418.0,94417.0,0.211826]
[1734915451530,0.010171,94418.0,94417.0,0.388155]
[1734915451867,0.010171,94418.0,94417.0,0.4894634]
[1734915453039,0.010171,94418.0,94412.0,0.23326351]
[1734915453470,0.010171,94418.0,94413.0,8.55e-05]
[1734915453844,0.087271,94418.0,94413.0,8.55e-05]
[1734915454733,0.087271,94418.0,94403.0,0.30699323]
[1734915455147,0.087271,94418.0,94411.0,0.0209041]
[1734915455560,0.08859484,94418.0,94402.0,0.09513623]
[1734915455767,0.087271,94418.0,94402.0,0.09513623]
[1734915456527,0.087271,94418.0,94396.0,0.04342837]
[1734915456796,0.211842,94410.0,94396.0,0.04342837]
[1734915456996,0.211842,94410.0,94397.0,0.211871]
[1734915457199,0.21183,94415.0,94399.0,0.211866]
[1734915457609,0.211842,94410.0,94399.0,0.211866]
[1734915457738,0.21183,94415.0,94399.0,0.211866]
[1734915458529,0.423661,94415.0,94399.0,0.211866]
[1734915459313,0.211843,94410.0,94399.0,0.211866]
[1734915459519,0.211843,94410.0,94396.0,0.04342837]
[1734915459691,0.211832,94414.0,94396.0,0.04342837]
[1734915459932,0.21183,94415.0,94396.0,0.04342837]
[1734915459933,0.081,94404.0,94396.0,0.04342837]
[1734915460239,0.211857,94403.0,94396.0,0.04342837]
[1734915461619,0.211864,94400.0,94396.0,0.04342837]
[1734915462283,0.211866,94399.0,94396.0,0.04342837]
[1734915462627,0.211871,94397.0,94396.0,0.00016245]
[1734915463390,0.290671,94397.0,94396.0,0.00016245]
[1734915463811,0.4149794,94397.0,94396.0,0.00016245]
[1734915464906,0.4149794,94397.0,94396.0,0.00024795]
[1734915465759,0.290671,94397.0,94396.0,0.00024795]
[1734915466667,0.211856,94404.0,94396.0,0.00024795]
[1734915466877,0.0789,94406.0,94396.0,0.00024795]
[1734915467884,0.0789,94406.0,94396.0,0.04301199]
[1734915468089,0.211843,94410.0,94396.0,0.04301199]
[1734915468584,0.211835,94413.0,94397.0,0.211871]
[1734915468785,0.211835,94413.0,94396.0,0.04301199]
[1734915468995,0.211848,94408.0,94396.0,0.04301199]
[1734915469591,0.211848,94408.0,94394.0,0.12688699]
[1734915469832,0.211835,94413.0,94394.0,0.211877]
[1734915470475,0.423671,94413.0,94394.0,0.211877]
[1734915471660,0.423671,94413.0,94394.0,0.25442902]
[1734915473232,0.1013084,94412.0,94394.0,0.04255202]
[1734915473430,0.211868,94399.0,94394.0,0.04255202]
[1734915473543,0.211868,94399.0,94381.0,0.09513623]
[1734915473746,0.211868,94399.0,94382.0,0.15]
[1734915473747,0.211871,94397.0,94382.0,0.15]
[1734915473946,0.0804,94398.0,94384.0,0.15]
[1734915474527,0.0804,94398.0,94388.0,0.2119746]
[1734915474719,0.211859,94403.0,94386.0,0.211895]
[1734915475782,0.211859,94403.0,94385.0,0.02119306]
[1734915475783,0.211841,94411.0,94393.0,0.211879]
[1734915475985,0.288541,94411.0,94393.0,0.211879]
[1734915476917,0.000171,94408.0,94393.0,0.211879]
[1734915477123,0.211848,94407.0,94393.0,0.211879]
[1734915477318,0.423696,94407.0,94387.0,0.3131994]
[1734915477879,0.211848,94407.0,94387.0,0.3131994]
[1734915478287,0.211848,94407.0,94392.0,0.211881]
[1734915479591,0.423697,94407.0,94387.0,0.3131994]
[1734915479792,0.423697,94407.0,94391.0,0.02113019]
[1734915480398,0.423697,94407.0,94387.0,0.1013084]
[1734915480598,0.211848,94407.0,94392.0,0.21188]
[1734915481361,0.211848,94407.0,94390.0,0.02116625]
[1734915481958,0.000171,94408.0,94407.0,0.15]
[1734915482162,0.0771,94434.0,94420.0,0.12929735]
[1734915482394,0.17052582,94442.0,94429.0,0.211797]
[1734915482593,0.17052582,94442.0,94429.0,0.020829]
[1734915482594,0.00054081,94432.0,94429.0,0.020829]
[1734915483184,0.00054081,94432.0,94421.0,0.211817]
[1734915483803,0.00054081,94432.0,94428.0,0.02129352]
[1734915484157,0.00054081,94432.0,94420.0,0.3131264]
[1734915484808,0.00054081,94432.0,94420.0,0.1851264]
[1734915485014,0.00054081,94432.0,94426.0,0.02113263]
[1734915485237,0.00054081,94432.0,94427.0,0.211803]
[1734915485447,0.00054081,94432.0,94428.0,0.318102]
[1734915485663,0.00054081,94432.0,94428.0,0.15]
[1734915485864,0.00054081,94432.0,94430.0,0.15]
[1734915486694,0.00054081,94432.0,94430.0,0.19370406]
[1734915486899,0.00054081,94432.0,94430.0,0.04370406]
[1734915487271,0.00054081,94432.0,94426.0,0.23293763]
[1734915487480,0.00054081,94432.0,94427.0,0.15]
[1734915488675,0.00054081,94432.0,94426.0,0.02113263]
[1734915489269,0.00054081,94432.0,94427.0,0.211802]
[1734915489470,0.00071181,94432.0,94428.0,0.26248]
[1734915489816,0.00071181,94432.0,94428.0,0.13448]
[1734915490019,0.00071181,94432.0,94428.0,0.260777]
[1734915490259,0.00071181,94432.0,94428.0,0.132777]
[1734915490463,0.00071181,94432.0,94427.0,0.134701]
[1734915491794,0.00071181,94432.0,94428.0,0.211801]
[1734915493166,0.00071181,94432.0,94426.0,0.02113263]
[1734915493808,0.00071181,94432.0,94427.0,0.211803]
[1734915494174,0.00071181,94432.0,94427.0,0.423606]
[1734915494402,0.00071181,94432.0,94429.0,0.211799]
[1734915494604,0.00071181,94432.0,94429.0,0.083799]
[1734915494938,0.00071181,94432.0,94429.0,0.211799]
[1734915495620,0.00071181,94432.0,94426.0,0.02113263]
[1734915495839,0.00071181,94432.0,94427.0,0.156045]
[1734915496179,0.00071181,94432.0,94426.0,0.02113263]
[1734915496806,0.00071181,94432.0,94427.0,0.211803]
[1734915497930,0.00071181,94432.0,94426.0,0.02113263]
[1734915499427,0.211797,94430.0,94420.0,0.0435103]
[1734915499585,0.21184,94411.0,94404.0,0.14270435]
[1734915499782,0.211831,94415.0,94407.0,0.09513623]
[1734915499990,0.211823,94419.0,94407.0,0.09513623]
[1734915500478,0.211811,94424.0,94409.0,0.12929735]
[1734915500623,0.211811,94424.0,94408.0,0.211846]
[1734915503682,0.0756,94428.0,94413.0,0.211833]
[1734915504040,0.211803,94427.0,94413.0,0.211833]
[1734915504880,0.211803,94427.0,94406.0,0.21185]
[1734915505075,0.211803,94427.0,94407.0,0.663297]
[1734915505645,0.211803,94427.0,94407.0,0.875145]
[1734915505863,0.211803,94427.0,94407.0,0.211848]
[1734915506624,0.211803,94427.0,94407.0,0.423696]
[1734915507375,0.423607,94427.0,94407.0,0.423696]
[1734915507619,0.0756,94428.0,94408.0,0.1013084]
[1734915507918,0.0756,94428.0,94410.0,0.12929735]
[1734915508123,0.211815,94422.0,94405.0,0.02093459]
[1734915508328,0.211815,94422.0,94406.0,0.21185]
[1734915509623,0.211815,94422.0,94406.0,0.08385]
[1734915509792,0.211815,94422.0,94406.0,0.36185]
[1734915510844,0.211815,94422.0,94406.0,0.5737]
[1734915511063,0.211803,94427.0,94406.0,0.5737]
[1734915511448,0.211803,94427.0,94411.0,0.211839]
[1734915513972,0.0756,94428.0,94405.0,0.02093459]
[1734915514179,0.0756,94428.0,94412.0,0.211837]
[1734915514549,0.0756,94428.0,94406.0,0.15]
[1734915514751,0.0756,94428.0,94417.0,0.211825]
[1734915514918,0.0756,94428.0,94422.0,0.211814]
[1734915515330,0.0756,94428.0,94418.0,0.211823]
[1734915515952,0.0756,94428.0,94418.0,0.161823]
[1734915516174,0.0756,94428.0,94427.0,0.02120287]
[1734915517215,0.0756,94428.0,94411.0,0.211839]
[1734915517785,0.211803,94427.0,94411.0,0.211839]
[1734915518195,0.1013084,94426.0,94411.0,0.04276589]
[1734915518626,0.211822,94419.0,94406.0,0.09522173]
[1734915519301,0.211822,94419.0,94412.0,0.02113387]
[1734915519859,0.211835,94414.0,94412.0,0.02113387]
[1734915521876,0.211822,94419.0,94412.0,0.02113387]
[1734915522873,0.21181,94424.0,94412.0,0.02113387]
[1734915523910,0.211822,94419.0,94412.0,0.02113387]
[1734915524110,0.211822,94419.0,94406.0,8.55e-05]
[1734915524745,0.211822,94419.0,94404.0,0.15]
[1734915524746,0.211822,94419.0,94404.0,0.0220855]
[1734915524944,0.0751,94413.0,94402.0,0.09513623]
[1734915525347,0.0751,94413.0,94403.0,0.211857]
[1734915526248,0.0751,94413.0,94408.0,0.02134803]
[1734915527258,0.0751,94413.0,94402.0,0.09513623]
[1734915527436,0.0751,94413.0,94400.0,0.09513623]
[1734915528445,0.0751,94413.0,94401.0,0.211862]
[1734915528671,0.0751,94413.0,94406.0,0.020906]
[1734915530202,0.211837,94412.0,94406.0,0.020906]
[1734915532007,0.0751,94413.0,94406.0,0.020906]
[1734915532207,0.211823,94419.0,94406.0,0.020906]
[1734915532416,0.0765,94422.0,94406.0,0.020906]
[1734915532631,0.211809,94425.0,94406.0,0.020906]
[1734915533238,0.211809,94425.0,94410.0,0.211841]
[1734915533433,0.0765,94427.0,94406.0,0.020906]
[1734915533637,0.10263217,94426.0,94406.0,0.020906]
[1734915533837,0.10263217,94426.0,94407.0,0.09513623]
[1734915534258,0.211834,94414.0,94407.0,0.09513623]
[1734915534653,0.211834,94414.0,94405.0,0.15]
[1734915535058,0.211829,94416.0,94405.0,0.15]
[1734915535295,0.211822,94419.0,94405.0,0.15]
[1734915535644,0.211822,94419.0,94406.0,0.21185]
[1734915535845,0.211822,94419.0,94407.0,0.483694]
[1734915536096,0.211822,94419.0,94406.0,0.489744]
[1734915536427,0.211822,94419.0,94405.0,0.15]
[1734915536545,0.211822,94419.0,94406.0,0.021149]
[1734915536747,0.211822,94419.0,94406.0,0.185254]
[1734915536948,0.211822,94419.0,94407.0,0.164095]
[1734915537387,0.423644,94419.0,94406.0,0.021149]
[1734915539839,0.423644,94419.0,94401.0,0.043149]
[1734915540095,0.423644,94419.0,94400.0,0.211862]
[1734915540225,0.423644,94419.0,94407.0,0.02081822]
[1734915540427,0.423644,94419.0,94400.0,0.211862]
[1734915540725,0.423644,94419.0,94401.0,0.159642]
[1734915540925,0.211834,94414.0,94401.0,0.159642]
[1734915541131,0.0786,94413.0,94398.0,0.25575693]
[1734915541338,0.0786,94413.0,94400.0,0.211864]
[1734915541878,0.0786,94413.0,94406.0,0.02171049]
[1734915542852,0.211837,94412.0,94406.0,0.02171049]
[1734915544209,0.211837,94412.0,94401.0,0.1500855]
[1734915544745,0.211837,94412.0,94401.0,0.0220855]
[1734915545252,0.211837,94412.0,94400.0,0.14289723]
[1734915545253,0.0452,94412.0,94400.0,0.16369799]
[1734915545489,0.0452,94412.0,94398.0,0.04388993]
[1734915545490,0.211856,94404.0,94402.0,0.14289723]
[1734915545698,0.08092409,94403.0,94402.0,0.14289723]
[1734915545899,0.25323249,94403.0,94402.0,0.14289723]
[1734915546074,0.2519084,94403.0,94402.0,0.14289723]
[1734915547284,0.023,94399.0,94398.0,0.09531862]
[1734915547596,0.1243084,94399.0,94398.0,0.09531862]
[1734915548614,0.1243084,94399.0,94393.0,0.03700069]
[1734915548760,0.52636868,94398.0,94393.0,0.03700069]
[1734915548962,0.211891,94388.0,94387.0,8.55e-05]
[1734915553153,0.211891,94388.0,94387.0,0.03740286]
[1734915553388,0.211891,94388.0,94387.0,8.55e-05]
[1734915556441,0.211891,94388.0,94387.0,0.03634689]
[1734915556846,0.211868,94398.0,94387.0,0.03634689]
[1734915557990,0.00012021,94403.0,94393.0,0.211878]
[1734915558325,0.00012021,94403.0,94393.0,0.423757]
[1734915559258,0.00012021,94403.0,94396.0,0.211872]
[1734915559461,0.00012021,94403.0,94398.0,0.211868]
[1734915559663,0.00012021,94403.0,94399.0,0.60313]
[1734915559865,0.00012021,94403.0,94397.0,0.60313]
[1734915560542,0.00012021,94403.0,94397.0,0.47513]
[1734915560779,0.00012021,94403.0,94397.0,0.59555]
[1734915560899,0.00012021,94403.0,94402.0,0.02136677]
[1734915562385,0.00012021,94403.0,94402.0,0.65360877]
[1734915562858,0.00012021,94403.0,94402.0,0.21055677]
[1734915563030,0.00012021,94403.0,94402.0,0.02136677]
[1734915564602,0.00012021,94403.0,94401.0,0.10522677]
[1734915564800,0.00012021,94403.0,94399.0,0.15]
[1734915565025,0.00012021,94403.0,94401.0,0.15]
[1734915565231,0.00012021,94403.0,94401.0,0.21186]
[1734915565427,0.00012021,94403.0,94402.0,0.149389]
[1734915566923,0.00012021,94403.0,94402.0,0.17041885]
[1734915567743,0.00029121,94403.0,94402.0,0.17041885]
[1734915569678,0.00029121,94403.0,94402.0,0.04241885]
[1734915574323,0.00029121,94403.0,94402.0,0.02102985]
[1734915574728,0.00029121,94403.0,94400.0,0.211864]
[1734915575129,0.00029121,94403.0,94402.0,0.02145222]
[1734915575539,0.07889121,94403.0,94402.0,0.02145222]
[1734915575892,0.29074821,94403.0,94402.0,0.02145222]
[1734915576097,0.29074821,94403.0,94390.0,0.09531862]
[1734915576514,0.29074821,94403.0,94394.0,0.02088607]
[1734915576718,0.29074821,94403.0,94387.0,0.03680164]
[1734915576922,0.07889121,94403.0,94387.0,0.03680164]
[1734915577129,0.21186,94402.0,94387.0,0.03680164]
[1734915577818,0.07889121,94403.0,94393.0,0.211878]
[1734915578064,0.00029121,94403.0,94398.0,0.211867]
[1734915578878,0.00029121,94403.0,94390.0,0.211886]
[1734915579083,0.00029121,94403.0,94396.0,0.211872]
[1734915579495,0.00029121,94403.0,94402.0,8.55e-05]
[1734915579712,0.00029121,94403.0,94391.0,0.211883]
[1734915579908,0.00029121,94403.0,94392.0,0.725124]
[1734915580290,0.00029121,94403.0,94392.0,1.148888]
[1734915580493,0.00029121,94403.0,94393.0,0.734216]
[1734915580722,0.00029121,94403.0,94390.0,0.211886]
[1734915581420,0.00029121,94403.0,94392.0,0.211882]
[1734915581665,0.00029121,94403.0,94394.0,0.211877]
[1734915581833,0.00029121,94403.0,94394.0,0.423754]
[1734915584012,0.00029121,94403.0,94394.0,0.211877]
[1734915587029,0.00029121,94403.0,94390.0,0.211886]
[1734915588258,0.0825,94401.0,94389.0,0.17126563]
[1734915588467,0.0825,94401.0,94390.0,0.211886]
[1734915588666,0.00029121,94403.0,94400.0,0.211863]
[1734915589035,0.00029121,94403.0,94395.0,0.211874]
[1734915589889,0.00029121,94403.0,94390.0,0.12929735]
[1734915590086,0.00029121,94403.0,94391.0,0.249264]
[1734915590203,0.00029121,94403.0,94395.0,0.211874]
[1734915591258,0.07709121,94409.0,94395.0,0.211874]
[1734915591425,0.07714533,94409.0,94395.0,0.211874]
[1734915592836,0.211846,94408.0,94394.0,8.55e-05]
[1734915593194,0.07714533,94409.0,94394.0,8.55e-05]
[1734915593385,0.211846,94408.0,94394.0,8.55e-05]
[1734915593761,0.211846,94408.0,94395.0,0.211875]
[1734915594405,0.211846,94408.0,94394.0,8.55e-05]
[1734915595275,0.211846,94408.0,94395.0,0.211875]
[1734915595479,0.07714533,94409.0,94395.0,0.211875]
[1734915596612,0.07714533,94409.0,94400.0,0.211864]
[1734915596784,0.07714533,94409.0,94395.0,0.211875]
[1734915597783,0.28899033,94409.0,94395.0,0.211875]
[1734915599621,0.28899033,94409.0,94395.0,0.083875]
[1734915599955,0.50083533,94409.0,94394.0,8.55e-05]
[1734915600567,0.211856,94404.0,94394.0,8.55e-05]
[1734915601033,0.211858,94403.0,94394.0,8.55e-05]
[1734915601250,0.0471,94401.0,94394.0,8.55e-05]
[1734915601459,0.358875,94395.0,94394.0,8.55e-05]
[1734915601669,0.4601834,94395.0,94394.0,8.55e-05]
[1734915602713,0.124,94395.0,94394.0,8.55e-05]
[1734915603351,0.1253242,94395.0,94394.0,8.55e-05]
[1734915603582,0.12379997,94395.0,94394.0,8.55e-05]
[1734915603797,0.07669997,94395.0,94394.0,8.55e-05]
[1734915604014,0.000171,94404.0,94394.0,8.55e-05]
[1734915604868,0.000171,94404.0,94388.0,0.15]
[1734915605074,0.000171,94404.0,94389.0,0.342427]
[1734915605282,0.211857,94403.0,94390.0,0.09531862]
[1734915606321,0.000171,94404.0,94401.0,0.15]
[1734915606530,0.1226,94429.0,94404.0,0.211855]
[1734915606757,0.211808,94426.0,94409.0,0.12929735]
[1734915606989,0.211862,94401.0,94400.0,0.02143769]
[1734915607211,0.0821,94410.0,94400.0,0.02143769]
[1734915607410,0.04722409,94409.0,94400.0,0.02143769]
[1734915607821,0.211848,94407.0,94400.0,0.02143769]
[1734915608023,0.0459,94409.0,94400.0,0.02143769]
[1734915608226,0.257745,94409.0,94406.0,0.14289723]
[1734915609247,0.0459,94409.0,94406.0,0.14289723]
[1734915609585,0.0459,94409.0,94396.0,0.23348541]
[1734915609792,0.0459,94409.0,94392.0,0.09522587]
[1734915610129,0.0459,94409.0,94398.0,0.211867]
[1734915610330,0.0459,94409.0,94396.0,0.02088701]
[1734915610536,0.257744,94409.0,94396.0,0.02088701]
[1734915612351,0.0774,94399.0,94393.0,0.09522587]
[1734915612554,0.0774,94397.0,94393.0,0.09522587]
[1734915612706,0.211875,94395.0,94393.0,0.09522587]
[1734915612912,0.1013084,94394.0,94393.0,0.09522587]
[1734915613086,0.289273,94397.0,94393.0,0.09522587]
[1734915613719,0.289273,94397.0,94391.0,5.412e-05]
[1734915613927,0.0774,94397.0,94391.0,5.412e-05]
[1734915614127,0.0774,94397.0,94394.0,8.55e-05]
[1734915616447,0.21185,94407.0,94394.0,8.55e-05]
[1734915616448,0.26135,94407.0,94394.0,8.55e-05]
[1734915616650,0.0828,94406.0,94394.0,8.55e-05]
[1734915617058,0.21317713,94405.0,94394.0,8.55e-05]
[1734915617240,0.0828,94406.0,94394.0,8.55e-05]
[1734915617241,0.211866,94400.0,94394.0,8.55e-05]
[1734915617596,0.00132414,94399.0,94394.0,8.55e-05]
[1734915617798,0.211868,94398.0,94394.0,8.55e-05]
[1734915618007,0.0758,94397.0,94394.0,8.55e-05]
[1734915618344,0.211873,94396.0,94394.0,8.55e-05]
[1734915619005,0.00132426,94395.0,94394.0,8.55e-05]
[1734915622183,0.211873,94396.0,94394.0,8.55e-05]
[1734915622422,0.00132432,94395.0,94394.0,8.55e-05]
[1734915622737,0.211873,94396.0,94394.0,8.55e-05]
[1734915623202,0.0758,94397.0,94394.0,8.55e-05]
[1734915623459,0.082,94407.0,94394.0,8.55e-05]
[1734915623666,0.0487,94416.0,94400.0,0.211862]
[1734915623667,0.260528,94416.0,94400.0,0.211862]
[1734915624069,0.211828,94416.0,94400.0,0.211862]
[1734915624281,0.082,94417.0,94401.0,0.404292]
[1734915624485,0.000171,94419.0,94399.0,0.12929735]
[1734915624682,0.000171,94419.0,94400.0,0.430002]
[1734915624906,0.000171,94419.0,94399.0,0.12929735]
[1734915625026,0.000171,94419.0,94400.0,0.560815]
[1734915625233,0.000171,94419.0,94400.0,0.382067]
[1734915625493,0.000171,94419.0,94407.0,0.211847]
[1734915627165,0.000171,94419.0,94405.0,0.09522587]
[1734915627166,0.211993,94419.0,94405.0,0.09522587]
[1734915627367,0.00132388,94418.0,94405.0,0.09522587]
[1734915627570,0.211993,94419.0,94405.0,0.12253037]
[1734915628390,0.211846,94408.0,94405.0,0.12253037]
[1734915628593,0.18503241,94407.0,94405.0,0.09522587]
[1734915628794,0.211857,94404.0,94400.0,0.09522587]
[1734915629118,0.211859,94402.0,94400.0,0.09522587]
[1734915629776,0.211859,94402.0,94396.0,0.1101231]
[1734915630398,0.211859,94402.0,94394.0,0.02735188]
[1734915632719,0.1837084,94407.0,94395.0,0.211875]
[1734915632720,0.0824,94407.0,94395.0,0.211875]
[1734915632927,0.423694,94408.0,94394.0,0.02735188]
[1734915633128,0.1013084,94408.0,94394.0,0.02735188]
[1734915633361,0.211848,94407.0,94394.0,0.02735188]
[1734915634182,0.211848,94407.0,94395.0,0.211875]
[1734915634385,0.211833,94414.0,94395.0,0.211875]
[1734915634593,0.0751,94417.0,94394.0,0.02735188]
[1734915634811,0.211863,94401.0,94389.0,0.02153663]
[1734915635023,0.211863,94401.0,94390.0,0.02750003]
[1734915635221,0.211863,94401.0,94389.0,0.02153663]
[1734915636392,0.211876,94395.0,94389.0,0.02153663]
[1734915636669,0.1013084,94395.0,94389.0,0.02153663]
[1734915636868,0.211881,94393.0,94389.0,0.02153663]
[1734915637070,0.211884,94391.0,94389.0,0.02153663]
[1734915637608,0.0809,94396.0,94386.0,8.55e-05]
[1734915637820,0.211875,94395.0,94386.0,8.55e-05]
[1734915638010,0.13,94404.0,94386.0,8.55e-05]
[1734915638755,0.1013084,94398.0,94386.0,8.55e-05]
[1734915638957,0.290193,94387.0,94386.0,8.55e-05]
[1734915639157,0.4596014,94387.0,94386.0,8.55e-05]
[1734915639692,0.48632396,94387.0,94386.0,8.55e-05]
[1734915641951,0.4596014,94387.0,94386.0,8.55e-05]
[1734915656992,0.423947,94390.0,94386.0,8.55e-05]
[1734915657219,0.211891,94388.0,94386.0,8.55e-05]
[1734915657352,0.00132439,94387.0,94386.0,8.55e-05]
[1734915657585,0.211891,94388.0,94386.0,8.55e-05]
[1734915658123,0.00132439,94387.0,94386.0,8.55e-05]
[1734915658279,0.211891,94388.0,94386.0,8.55e-05]
[1734915658480,0.00132439,94387.0,94386.0,8.55e-05]
[1734915658887,0.211891,94388.0,94386.0,8.55e-05]
[1734915659085,0.000171,94390.0,94386.0,8.55e-05]
[1734915659486,0.211889,94389.0,94386.0,8.55e-05]
[1734915660258,0.000171,94390.0,94386.0,8.55e-05]
[1734915660417,0.000171,94390.0,94387.0,0.211893]
[1734915660619,0.000171,94390.0,94389.0,0.361889]
[1734915661349,0.000171,94390.0,94389.0,0.15]
[1734915661547,0.000171,94390.0,94386.0,8.55e-05]
[1734915662362,0.31452173,94389.0,94386.0,8.55e-05]
[1734915662562,0.234893,94387.0,94386.0,8.55e-05]
[1734915662839,0.3362014,94387.0,94386.0,8.55e-05]
[1734915664333,0.2080014,94387.0,94386.0,8.55e-05]
[1734915664526,0.1243084,94387.0,94386.0,8.55e-05]
[1734915664732,0.12563303,94387.0,94386.0,8.55e-05]
[1734915665799,0.33752603,94387.0,94386.0,8.55e-05]
[1734915666008,0.3362014,94387.0,94386.0,8.55e-05]
[1734915668895,0.61572518,94387.0,94386.0,8.55e-05]
[1734915669122,0.5862014,94387.0,94386.0,8.55e-05]
[1734915669758,0.5862014,94387.0,94386.0,5e-07]
[1734915669967,0.6667014,94387.0,94386.0,5e-07]
[1734915670818,0.1,94374.0,94373.0,8.55e-05]
[1734915670992,0.5625304,94374.0,94373.0,8.55e-05]
[1734915672036,0.56258448,94374.0,94373.0,8.55e-05]
[1734915672405,0.46258448,94374.0,94373.0,8.55e-05]
[1734915672604,0.39378448,94374.0,94373.0,8.55e-05]
[1734915672834,0.10136248,94374.0,94373.0,8.55e-05]
[1734915673183,5.408e-05,94374.0,94373.0,8.55e-05]
[1734915673521,5.408e-05,94374.0,94373.0,0.4812875]
[1734915673683,5.408e-05,94374.0,94373.0,8.55e-05]
[1734915673887,5.408e-05,94374.0,94373.0,0.03040553]
[1734915674083,5.408e-05,94374.0,94373.0,8.55e-05]
[1734915674720,5.408e-05,94374.0,94371.0,0.0220855]
[1734915674926,5.408e-05,94374.0,94372.0,0.211927]
[1734915678334,0.000171,94390.0,94372.0,0.211927]
[1734915678335,0.000171,94390.0,94389.0,0.211889]
[1734915678538,0.000171,94390.0,94389.0,0.428301]
[1734915678757,0.000171,94390.0,94389.0,0.541155]
[1734915678959,0.000171,94409.0,94406.0,0.21185]
[1734915679422,0.000171,94419.0,94409.0,0.1]
[1734915679580,0.000171,94419.0,94418.0,0.361824]
[1734915679982,0.000171,94419.0,94418.0,1.460812]
[1734915680188,0.000171,94419.0,94418.0,1.776765]
[1734915680390,0.000171,94419.0,94418.0,1.526395]
[1734915680606,0.000131,94419.0,94418.0,1.526395]
[1734915681025,0.000131,94419.0,94418.0,1.55651775]
[1734915681610,0.000131,94419.0,94418.0,1.57741309]
[1734915682062,0.000171,94432.0,94431.0,0.211794]
[1734915682256,0.00071271,94432.0,94431.0,0.607982]
[1734915682663,0.10202111,94432.0,94418.0,0.03012275]
[1734915682838,0.10263226,94431.0,94418.0,0.03012275]
[1734915683110,0.211811,94424.0,94413.0,0.14274812]
[1734915683311,0.211815,94422.0,94414.0,0.02990166]
[1734915683547,0.211819,94420.0,94416.0,0.09518504]
[1734915683727,0.10263237,94419.0,94416.0,0.09518504]
[1734915683902,0.234824,94418.0,94416.0,0.09518504]
[1734915684136,0.12563241,94417.0,94416.0,0.09518504]
[1734915684722,0.02563241,94417.0,94413.0,0.10993316]
[1734915684905,0.023,94415.0,94389.0,0.02982696]